Cogmind - Beta 12 X1 @@@ ROGUE MODE // 2022.07.04 @ 05:09:20 Player: youngster Result: Destroyed by 8R-AWN with 8R-AWN's Boregun Performance ------------- Evolutions (0) 0 Regions Visited (3) 600 Robots Destroyed (28) 140 Value Destroyed (512) 512 Prototype IDs (29) 580 Alien Tech Used (0) 0 Bonus (97) 97 TOTAL SCORE: 1929 Bonus ------- Aligned with FarCom 300 Friendly Fire -203 Cogmind --------- Core Integrity 0/250 Matter 298/300 Energy 98/100 System Corruption 0% Temperature Cool (0) Movement Core (1450) Ox28 Location -10/Exiles Parts ------- > --- POWER (1) -------- (None) > --- PROPULSION (2) --- (None) > --- UTILITY (2) ------ Huge Storage Unit Light Armor Plating > --- WEAPON (2) ------- Light Assault Rifle Light Assault Rifle > --- INVENTORY (25) --- Ion Engine Light Treads Light Treads Compact Wheel Heat Sink High-capacity Matter Pod (200) Experimental Sensor Array Seismic Detector Targeting Computer Light Armor Plating Light Armor Plating Tractor Beam EM Pulse Gun Firepult Light Assault Rifle Light Assault Rifle Light Assault Rifle Grenade Launcher Peak State ------------ > --- POWER ------------ Ion Engine > --- PROPULSION ------- Light Treads Compact Wheel > --- UTILITY ---------- Huge Storage Unit Light Armor Plating > --- WEAPON ----------- EM Pulse Gun Light Assault Rifle > --- INVENTORY -------- Ion Engine Light Treads Light Treads Heat Sink Large Matter Pod Large Matter Pod High-capacity Matter Pod Experimental Sensor Array Seismic Detector Targeting Computer Light Armor Plating Light Armor Plating Light Armor Plating Light Armor Plating Light Armor Plating Tractor Beam Firepult Light Assault Rifle Light Assault Rifle Light Assault Rifle Light Assault Rifle Light Assault Rifle Grenade Launcher [Rating: 12] Favorites ----------- Power Ion Engine Engine Ion Engine Propulsion Light Treads Treads Light Treads Wheel Compact Wheel Utility Light Armor Plating Storage Huge Storage Unit Protection Light Armor Plating Weapon EM Pulse Gun Energy Gun EM Pulse Gun Ballistic Gun Light Assault Rifle Launcher Grenade Launcher Build | -11 -10 -10 -10 ------- Run | Scr Mat Min Exi Slots Evolved . | . . . . Power . | . . . . Propulsion . | . . . . Utility . | . . . . Weapon . | . . . . Parts Attached 24 | 6 8 4 6 Power 1 | 1 . . . Engine 1 | 1 . . . Core . | . . . . Reactor . | . . . . Propulsion 3 | 2 . 1 . Treads 2 | 2 . . . Leg . | . . . . Wheel 1 | . . 1 . Hover . | . . . . Flight . | . . . . Utility 8 | 1 3 1 3 Device . | . . . . Storage 4 | 1 2 1 . Processor . | . . . . Hackware . | . . . . Protection 4 | . 1 . 3 Artifact . | . . . . Weapon 12 | 2 5 2 3 Energy Gun 6 | 2 3 1 . Energy Cannon . | . . . . Ballistic Gun 3 | . 1 . 2 Ballistic Cannon . | . . . . Launcher 3 | . 1 1 1 Special Weapon . | . . . . Impact Weapon . | . . . . Slashing Weapon . | . . . . Piercing Weapon . | . . . . Special Melee Weapon . | . . . . Unidentified Prototypes . | . . . . Parts Lost 7 | . 1 . 6 Power 1 | . . . 1 Propulsion 1 | . . . 1 Utility 3 | . . . 3 Weapon 2 | . 1 . 1 Highest Loss Streak 6 | . 1 . 6 To Critical Strikes 2 | . . . 2 Average Slot Usage (%) 98 | . 97 100 98 Engine 13 | . 14 14 13 Treads 21 | . 28 19 13 Wheel 5 | . . 8 13 Storage 14 | . 14 14 14 Protection 13 | . 12 14 14 Energy Gun 17 | . 23 13 12 Ballistic Gun 10 | . 4 14 14 Naked Turns . | . . . . Heaviest Build 92 | 14 52 91 92 Greatest Support 40 | 40 40 40 16 Greatest Overweight (x) 5 | . 1 5 5 Average Overweight (x) 2 | . . 3 5 Largest Inventory Capacity 25 | 8 20 25 25 Average Capacity 20 | 7 16 22 25 Most Carried 24 | 3 20 20 24 Average Carried 17 | 1 14 19 21 Final Capacity 25 | 8 20 25 25 Final Carried 20 | 3 20 20 19 Class Distribution -------------------- 100% | Mutant Dominant Class ---------------- Mutant | -10/Materials Mutant | -10/Mines Mutant | -10/Exiles Resources | -11 -10 -10 -10 ----------- Run | Scr Mat Min Exi Matter Collected 892 | 122 537 85 148 Remotely . | . . . . Salvage Created 822 | . 627 176 19 Parts 48 | . 36 12 . Haulers Intercepted 2 | . 2 . . Recyclers Shooed 1 | . . 1 . Parts Field Recycled . | . . . . Retrieved Matter . | . . . . Parts Self-Destructed . | . . . . Prevented . | . . . . Kills | -11 -10 -10 -10 ------- Run | Scr Mat Min Exi Combat Hostiles Destroyed 23 | . 12 8 3 Guns 12 | . 7 5 . AOE 10 | . 4 3 3 Classes Destroyed 9 | . 7 1 1 Worker 1 | . 1 . . Builder 1 | . . 1 . Hauler 2 | . 2 . . Recycler 1 | . 1 . . Operator 2 | . 2 . . Watcher 1 | . 1 . . Swarmer 12 | . 6 6 . Grunt 8 | . 6 2 . Assembled 4 | . . . 4 Best Kill Streak 5 | . 5 3 3 Combat Bots Only 3 | . 3 3 3 Max Kills in Single Turn 3 | . 2 2 3 Gunslinging 1 | . 1 . . Exploded 3 | . 1 2 3 Melee . | . . . . Uniques/NPCs Destroyed . | . . . . Combat | -11 -10 -10 -10 -------- Run | Scr Mat Min Exi Damage Taken 1178 | . 274 235 669 Core 252 | . 41 68 143 Absorbed by Shields . | . . . . Core Remaining (%) 100 | 100 . . . Volleys Fired 112 | . 51 27 34 Largest 2 | . 2 2 2 Hottest 90 | . 90 60 40 Shots Fired 209 | . 96 48 65 Gun 199 | . 91 46 62 Cannon . | . . . . Launcher 10 | . 5 2 3 Special . | . . . . Kinetic 96 | . 9 25 62 Thermal 6 | . 6 . . Explosive 10 | . 5 2 3 Electromagnetic 97 | . 76 21 . Robot Hit Streak 9 | . 6 8 9 Robot Miss Streak 8 | . 8 5 2 Penetration Max . | . . . . Secondary Targets 1 | . 1 . . Max Gunslinging Chain 1 | . 1 . . Shots Hit Robots 127 | . 51 31 45 Core Hits 61 | . 26 15 20 Critical Kills . | . . . . Critical Parts Destroyed . | . . . . Critical Strikes 2 | . 1 . 1 Destroy 1 | . . . 1 Corrupt 1 | . 1 . . Melee Attacks . | . . . . Impact . | . . . . Slashing . | . . . . Piercing . | . . . . Sneak Attacks . | . . . . Combat Hostiles . | . . . . Follow-up Attacks . | . . . . Damage Inflicted 2030 | . 979 413 638 Guns 1346 | . 694 302 350 Cannons . | . . . . Explosions 640 | . 256 96 288 Melee . | . . . . Ramming 44 | . 29 15 . Kinetic 540 | . 25 165 350 Thermal 147 | . 147 . . Explosive 542 | . 158 96 288 Electromagnetic 757 | . 620 137 . Impact . | . . . . Slashing . | . . . . Piercing . | . . . . Highest Corruption . | . . . . Average Corruption . | . . . . Corruption Purged . | . . . . Corruption Blocked . | . . . . Overload Shots . | . . . . Overflow Damage 27 | . 12 13 2 Projectiles . | . . . . Explosions 27 | . 12 13 2 Melee . | . . . . Knockbacks . | . . . . Impact . | . . . . Kinetic . | . . . . Secondary . | . . . . Self-Inflicted Damage 46 | . 45 1 . Shots 3 | . 2 1 . Rammed 12 | . 9 3 . Targets Rammed 12 | . 9 3 . Kicked . | . . . . Crushed . | . . . . Highest Temperature 346 | . 346 234 12 Average Temperature 71 | . 75 88 6 Received Heat Transfer 180 | . 96 84 . Siege Activations . | . . . . Robots Corrupted 2 | . 2 . . Combat Hostiles 1 | . 1 . . Parts Fried 4 | . 4 . . Impact Corruptions . | . . . . Robots Melted . | . . . . Combat Hostiles . | . . . . Parts Melted . | . . . . Heat Transferred 248 | . 248 . . Parts Sabotaged . | . . . . Parts Stolen . | . . . . Parts Stripped . | . . . . Power Chain Reactions 3 | . 3 . . Missiles Intercepted . | . . . . Alert | -11 -10 -10 -10 ------- Run | Scr Mat Min Exi Peak Influence 275 | . 233 275 . Initial 28 | . . 28 . Average 85 | . 108 59 . Maximum Alert Level 1 | . 1 1 . Low Security (%) 92 | 100 89 97 . Level 1 7 | . 10 2 . Level 2 . | . . . . Level 3 . | . . . . Level 4 . | . . . . Level 5 . | . . . . High Security . | . . . . Max Security . | . . . . Squads Dispatched 2 | . 2 . . Investigation 2 | . 2 . . Extermination . | . . . . Reinforcement . | . . . . Assault . | . . . . Garrison . | . . . . Intercept . | . . . . Searches Triggered . | . . . . Construction Impeded . | . . . . Haulers Reinforced . | . . . . Active Scanning Responses . | . . . . Cargo Convoy Interrupts . | . . . . Stealth | -11 -10 -10 -10 --------- Run | Scr Mat Min Exi Distress Signals . | . . . . Communications Jammed . | . . . . Distress Signals . | . . . . Times Spotted 43 | . 27 9 7 Peak Tracking Total 8 | . 4 3 8 Tactical Retreats 1 | . . 1 . Traps | -11 -10 -10 -10 ------- Run | Scr Mat Min Exi Traps Triggered . | . . . . Indirectly . | . . . . Trap Hack Attempts . | . . . . Triggered . | . . . . Disarmed . | . . . . Reprogrammed . | . . . . Reused . | . . . . Traps Extracted . | . . . . Installed . | . . . . Triggered . | . . . . Machines | -11 -10 -10 -10 ---------- Run | Scr Mat Min Exi Machines Disabled 7 | . 2 1 4 Max in Single Turn 2 | . 1 1 2 Machines Sabotaged . | . . . . Garrisons Compromised . | . . . . Overloaded Fab Kills . | . . . . Hacking | -11 -10 -10 -10 --------- Run | Scr Mat Min Exi Machines Accessed 12 | . 10 . 2 Terminals 8 | . 8 . . Fabricators . | . . . . Repair Stations . | . . . . Recycling Units 2 | . 2 . . Scanalyzers . | . . . . Garrison Access . | . . . . Total Hacks 40 | . 38 . 2 Successful 22 | . 20 . 2 Failed 18 | . 18 . . Catastrophic 2 | . 2 . . Database Lockouts . | . . . . Manual 29 | . 28 . 1 Terminals 36 | . 36 . . Fabricators . | . . . . Repair Stations . | . . . . Recycling Units 2 | . 2 . . Scanalyzers . | . . . . Garrison Access . | . . . . Terminal Hacks 18 | . 16 . 2 Record 1 | . . . 1 Part Schematic 1 | . 1 . . Robot Analysis 3 | . 3 . . Prototype ID Bank 8 | . 8 . . Locate Traps 3 | . 3 . . Hauler Manifests 1 | . 1 . . EX-Prototype ID Bank 1 | . . . 1 Fabricator Hacks . | . . . . Repair Station Hacks . | . . . . Recycling Unit Hacks . | . . . . Scanalyzer . | . . . . Garrison Access Hacks . | . . . . Unauthorized Hacks 4 | . 4 . . Terminals 2 | . 2 . . Track 1 | . 1 . . Operators 1 | . 1 . . Fabricators . | . . . . Repair Stations . | . . . . Recycling Units 2 | . 2 . . Tunnel 2 | . 2 . . Scanalyzers . | . . . . Garrison Access . | . . . . Data Cores Recovered 1 | . 1 . . Used 1 | . 1 . . Hacking Detections 8 | . 8 . . Full Trace Events 2 | . 2 . . Feedback Events . | . . . . Feedback Blocked . | . . . . Robot Schematics Acquired . | . . . . Robots Built . | . . . . Authchips . | . . . . Time . | . . . . Total Robot Build Rating . | . . . . Part Schematics Acquired 1 | . 1 . . Parts Built . | . . . . Authchips . | . . . . Time . | . . . . Total Part Build Rating . | . . . . Parts Repaired . | . . . . Time . | . . . . Parts Recycled . | . . . . Recycled Matter . | . . . . Retrieved Matter . | . . . . Retrieved Components . | . . . . Parts Scanalyzed . | . . . . Part Schematics Acquired . | . . . . Parts Damaged . | . . . . Bothacking | -11 -10 -10 -10 ------------ Run | Scr Mat Min Exi Used RIF Installer . | . . . . Robots Hacked . | . . . . Non-combat . | . . . . Combat . | . . . . Robot Hacks Applied . | . . . . Relay Couplers Released . | . . . . Fabnet Peak Effective % . | . . . . Robots Rewired . | . . . . Allies Hacked . | . . . . Hacks Repelled . | . . . . Allies | -11 -10 -10 -10 -------- Run | Scr Mat Min Exi Total Allies 6 | . . 6 . Largest Group 6 | . . 6 6 Highest-Rated Group 117 | . . 117 117 Highest-Rated Ally 31 | . . 31 31 Total Orders 1 | . . . 1 STAY 1 | . . . 1 Ally Attacks 17 | . . . 17 Total Damage 106 | . . . 106 Kills 3 | . . . 3 Allies Corrupted . | . . . . Allies Melted . | . . . . Intel | -11 -10 -10 -10 ------- Run | Scr Mat Min Exi Robot Analysis Total 3 | . 3 . . Derelict Logs Recovered 2 | . . 2 . Drone Launches . | . . . . Drone Recoveries . | . . . . Exploration | -11 -10 -10 -10 ------------- Run | Scr Mat Min Exi Turns Passed 4357 | 63 1843 1316 1135 Spaces Moved 2070 | 34 843 618 575 Core 2 | 2 . . . Treads 1076 | 32 843 201 . Legs . | . . . . Wheels 992 | . . 417 575 Hover . | . . . . Flight . | . . . . Fastest Speed 50 | 50 160 175 175 Average Speed 189 | 153 194 196 175 Slowest Speed 240 | 160 240 240 175 Overloaded Moves . | . . . . Propulsion Burnouts . | . . . . Robots Hopped . | . . . . Cave-ins Triggered . | . . . . Exploration Rate (%) 72 | 3 99 99 87 Regions Visited 3 Branch Regions 2 Pre-discovered Areas 5 | . 2 2 1 Known Exits Taken . | . . . . Unknown Exits Taken 3 | 1 1 1 . Scrap Searched 1 | . . 1 . Spaces Dug . | . . . . Terrain Destroyed 40 | . 19 9 12 Melee . | . . . . Projectile . | . . . . AOE 40 | . 19 9 12 Terrain Rammed . | . . . . Walls Destroyed . | . . . . Machines Disabled . | . . . . Actions | -11 -10 -10 -10 --------- Run | Scr Mat Min Exi Total 2317 | 42 946 673 656 Wait 50 | . 5 20 25 Move 2067 | 33 842 617 575 Hop . | . . . . Pick Up 35 | 3 23 1 8 Fast Attach 8 | 6 2 . . Attach 5 | . 1 . 4 Detach 1 | . . . 1 Swap 11 | . 5 4 2 Drop 16 | . 8 1 7 Fire 112 | . 51 27 34 Melee . | . . . . Ram . | . . . . Kick . | . . . . Crush 12 | . 9 3 . Escape Stasis . | . . . . Rewire . | . . . . Trap . | . . . . Miscellaneous . | . . . . Route ------- -11/Scrapyard -10/Materials (discovered 4 exits: [*Mat x3] / [*Min]) -10/Mines (discovered 3 exits: [*Mat x2] / *Exi) -10/Exiles History --------- Turn | Location | Event 18 | -11/Scrapyard | Discovered new exit (range 16) 64 | -11/Scrapyard | Entered Materials 238 | -10/Materials | Discovered new exit (range 7) 312 | -10/Materials | Build established: Mutant 390 | -10/Materials | Discovered new exit (range 13) 1044 | -10/Materials | Discovered new exit (range 10) 1531 | -10/Materials | Discovered new exit (range 16) 1907 | -10/Materials | Entered Mines 1943 | -10/Mines | Discovered new exit (range 15) 2289 | -10/Mines | Escorted by a lone wolf Derelict 2427 | -10/Mines | Deemed a non-threat by the Exiles lab entrance 2427 | -10/Mines | Discovered new exit (range 5) 2458 | -10/Mines | Found a damaged Exp. Sensor Array with a note attached 2465 | -10/Mines | Found Prototype Device 2688 | -10/Mines | Assisted by bots powering up and referring to "LRC-V3" 2704 | -10/Mines | Learned location of Storage (-7) 2986 | -10/Mines | Discovered new exit (range 7) 3223 | -10/Mines | Entered Exiles 3223 | -10/Exiles | Accompanied by 6 allies 3253 | -10/Exiles | Led the pair of lost Derelicts to a safe place 3275 | -10/Exiles | Met 8R-AWN 3397 | -10/Exiles | Met EX-HEX 3465 | -10/Exiles | Met EX-DEC 3474 | -10/Exiles | Learned location of Zion (-6) 3505 | -10/Exiles | Met EX-BIN 3546 | -10/Exiles | Aligned with FarCom system 3548 | -10/Exiles | Given EX-Vault access code 3588 | -10/Exiles | Opened EX-Vault 3597 | -10/Exiles | Found Firepult 3634 | -10/Exiles | Warned to stay clear of 0b10 Research branches 3897 | -10/Exiles | Visited The Gauntlet 4264 | -10/Exiles | Attacked by the Exiles 4291 | -10/Exiles | Core integrity fell below 50% 4314 | -10/Exiles | Core integrity fell below 20% 4358 | -10/Exiles | Destroyed by 8R-AWN with 8R-AWN's Boregun Last Messages --------------- 04333_ HV Slug penetrates Wall. 04334_ Extracted 2 matter. 04337_ Penetrated by HV Slug. 04340_ Extracted 2 matter. 04341_ 8R-AWN suffers critical hit (Destroy). 04341_ Penetrated by HV Slug. 04341_ Critical hit (Destroy). 04341_ Penetrated by HV Slug. 04342_ Extracted 2 matter. 04346_ Penetrated by HV Slug. 04346_ Lgt. Armor Plating destroyed. 04346_ Penetrated by HV Slug. 04347_ Extracted 10 matter. 04348_ Extracted 2 matter. 04350_ Penetrated by HV Slug. 04351_ Extracted 2 matter. 04354_ HV Slug penetrates Wall. 04354_ HV Slug penetrates Assembled Analyzer. 04356_ Extracted 2 matter. 04358_ Penetrated by HV Slug. Map ----- +----------------------------------------------------+ | # ###"" """"#????????????????????????????????? | | " """"#????????????????????????????????? | | " """#????????????????????????????????? | | " """#????????????????????????????????? | | " """#????????????????????????????????? | | " """#????????????????????????????????? | | " """##???????????????????????????????? | | # """""???????????????????????????????? | | # """##???????????????????????????????? | | #" "X" """"????????????????????????????????? | | #" """ #????????????????????????????????? | | #" """""""""#????????????????????????????????? | | #" ###########????????????????????????????????? | | "" #??????????????????????????????????????????? | | " #??????? ??????????????????????????????????? | | " ##??????? ?????????????????????????????????? | | " ##???####;######??????????????????????????? | | ##### "" """"##?????????????????????????? | | "" """"##????????????????????????? | | " #????????????????????????? | | """#????????????????????????? | | a #???????????#####????????? | | ;#?????????##" #????????? | | ###???????#" #????????? | | """" #??????##" ##???????? | | ###""" !@ #????### ###?????? | | ??#####""" ==[ !!;#???# ####### | | ??????##""" =%=%% g##?## #""""# | | ???????#"""" [%! ### | | ??????##"" = ## | | #??####"""" #### | | ####""" ""#?#"""""#### | | """" #"""##?#######??### | | ######?????????????? | | ##??????????????????? | | " #???????????????????? | | "" "" #???????????????????? | | ## ##""" " " ""#" #???????????????????? | | ## ######""" """# ###???????????????????? | | ?# #????###""""## # ###?????????????????????? | | ## ####???##############????????????????????????? | | #! " #?????????????????????????????????????????? | | #" #?????????????????????????????????????????? | | #" "#?????????????????????????????????????????? | | #!!""!"#?????????????????????????????????????????? | | ########?????????????????????????????????????????? | | ?????????????????????????????????????????????????? | | ?????????????????????????????????????????????????? | | ?????????????????????????????????????????????????? | | ?????????????????????????????????????????????????? | +----------------------------------------------------+ Best States ------------- Heat Dissipation 25 Energy Generation 10 Energy Capacity 250 Matter Stores 300 Matter Capacity 300 Sight Range 16 Terrain Scan Density 10 Armor Coverage 150 Evasion (%) 40 Recoil Reduction 2 Item Schematics ----------------- Huge Storage Unit | -10/Materials | Hacked Robot Schematics ------------------ None Fabricated ------------ Nothing Alien Tech Used ----------------- None Achievements -------------- None Challenges ------------ None Game ------ Seed HoverRecoilLauncher Manual? 0 Play Time 00:25:58 Cumulative 313.7 hours Start 2022.07.03 @ 20:23:18 End 2022.07.04 @ 05:09:20 Sessions 3 Manual Loads 0 Difficulty Rogue Special Mode None Game No. 140 Rogue 140 Adventurer 0 Explorer 0 Win Type - Total 8 Types 5/0/1/1/0/0/0/1/0 Lore% 88 Gallery% 90 Achievement% 70 Wizard Run 0 Options --------- ASCII 1 Keyboard 1 Movement Vi Keybinds 0 Fullscreen 2 Font 18/Cog Map View 76x50 Tactical HUD 1 Map Filters NONE Filters NONE Steam 0 RUN: 1912dcf6-e8d0-475d-8ff9-ee07882e3a11